bitfinex/quotes_SOLUSD_20251207
["timestamp","ask_amount","ask_price","bid_price","bid_amount"]
[1765068035923,8.98,132.58,132.56,4.78240624]
[1765068036224,0.66,132.57,132.56,4.78240624]
[1765068038802,8.98,132.58,132.56,4.78240624]
[1765068042629,8.32,132.58,132.56,12.32593725]
[1765068043131,8.98,132.58,132.56,12.32593725]
[1765068043313,8.32,132.58,132.56,12.32593725]
[1765068043614,0.66,132.57,132.56,12.32593725]
[1765068043930,0.66,132.57,132.56,4.78240624]
[1765068049437,8.32,132.58,132.56,12.99600174]
[1765068049612,8.98,132.58,132.56,12.32600174]
[1765068050112,0.71,132.57,132.56,12.32600174]
[1765068050432,9.03,132.58,132.56,12.32600174]
[1765068054034,9.04,132.58,132.56,12.32600174]
[1765068054439,0.72,132.57,132.55,7.54432289]
[1765068054631,9.04,132.58,132.56,4.78240624]
[1765068055625,8.32,132.58,132.57,0.69]
[1765068055830,8.32,132.58,132.56,5.47240624]
[1765068057942,9.04,132.58,132.56,12.32616001]
[1765068059421,9.04,132.58,132.56,4.78240624]
[1765068060938,9.04,132.58,132.56,12.32615424]
[1765068062317,0.72,132.61,132.58,8.80994492]
[1765068062518,9.04,132.61,132.6,4.78240624]
[1765068062737,8.32,132.61,132.6,4.78240624]
[1765068064024,8.32,132.61,132.59,7.5419697]
[1765068064337,0.72,132.6,132.59,4.78240624]
[1765068064547,0.72,132.6,132.58,4.78240624]
[1765068066329,0.72,132.6,132.59,4.78240624]
[1765068073049,9.04,132.61,132.59,4.78240624]
[1765068073629,16.58094958,132.61,132.58,5.47240624]
[1765068074151,16.58094958,132.61,132.59,4.78240624]
[1765068074666,16.58094958,132.61,132.58,5.47240624]
[1765068074952,16.58094958,132.61,132.59,4.78240624]
[1765068075141,16.58094958,132.61,132.58,5.47240624]
[1765068075345,16.58094958,132.61,132.58,4.78240624]
[1765068075346,0.72,132.6,132.58,4.78240624]
[1765068076356,9.04,132.61,132.59,4.78240624]
[1765068077944,0.72,132.6,132.59,4.78240624]
[1765068078144,0.72,132.6,132.58,7.54221107]
[1765068078442,0.72,132.6,132.59,4.78240624]
[1765068084075,0.72,132.6,132.56,35.21086633]
[1765068084076,8.26161848,132.6,132.56,7.54221107]
[1765068084359,8.97,132.59,132.55,4.78240624]
[1765068084545,31.62433264,132.59,132.55,4.78240624]
[1765068084742,0.67,132.58,132.55,4.78240624]
[1765068084944,8.3,132.57,132.55,4.78240624]
[1765068085458,8.97,132.57,132.55,4.78240624]
[1765068085960,8.97,132.57,132.56,4.78240624]
[1765068088375,8.97,132.57,132.56,3.05965238]
[1765068091077,0.67,132.62,132.57,8.80994492]
[1765068091373,8.97,132.62,132.59,3.05965238]
[1765068091744,0.67,132.61,132.59,3.05965238]
[1765068093457,0.67,132.61,132.59,10.60165914]
[1765068094150,8.97,132.62,132.59,8.20200676]
[1765068094353,8.97,132.62,132.6,3.05965238]
[1765068095174,0.67,132.61,132.6,3.05965238]
[1765068095372,0.67,132.61,132.59,10.60165914]
[1765068096470,0.67,132.61,132.6,3.05965238]
[1765068097576,8.97,132.62,132.6,3.05965238]
[1765068097980,0.67,132.61,132.6,3.05965238]
[1765068098164,8.97,132.62,132.6,3.05965238]
[1765068102974,8.97,132.62,132.59,8.20200676]
[1765068103280,8.97,132.62,132.6,3.05965238]
[1765068104277,8.3,132.62,132.6,3.05965238]
[1765068104482,0.67,132.61,132.6,3.05965238]
[1765068106276,8.3,132.62,132.6,3.05965238]
[1765068106584,8.3,132.62,132.6,3.71965238]
[1765068107290,8.97,132.62,132.6,3.05965238]
[1765068107468,8.3,132.62,132.6,3.05965238]
[1765068107677,8.97,132.62,132.6,3.05965238]
[1765068108288,8.3,132.62,132.61,3.71965238]
[1765068108678,8.3,132.62,132.61,12.5295973]
[1765068109205,8.97,132.64,132.61,12.5295973]
[1765068109405,8.97,132.64,132.63,3.05965238]
[1765068115990,8.97,132.64,132.62,3.05965238]
[1765068117312,8.97,132.64,132.63,3.05965238]
[1765068117508,8.3,132.64,132.63,3.05965238]
[1765068117822,104.3,132.66,132.64,8.80994492]
[1765068117987,0.1,132.67,132.65,11.26828788]
[1765068118300,8.4,132.67,132.66,3.05965238]
[1765068119302,8.4,132.67,132.66,19.40766453]
[1765068120080,8.4,132.67,132.66,20.08766453]
[1765068120285,0.1,132.67,132.66,20.08766453]
[1765068121383,0.79,132.67,132.65,11.45965238]
[1765068121579,0.79,132.67,132.65,3.05965238]
[1765068121816,0.79,132.67,132.66,3.05965238]
[1765068121991,0.1,132.67,132.66,3.05965238]
[1765068122189,0.1,132.67,132.66,20.08766453]
[1765068123602,0.1,132.67,132.66,19.40766453]
[1765068124216,0.1,132.67,132.66,20.08766453]
[1765068124720,0.1,132.67,132.66,28.38766453]
[1765068129419,0.1,132.7,132.67,8.80994492]
[1765068129628,0.1,132.7,132.69,3.05965238]
[1765068130093,0.1,132.7,132.69,3.73965238]
[1765068131302,0.1,132.7,132.69,19.40596025]
[1765068134801,0.1,132.7,132.69,20.08596025]
[1765068135826,0.1,132.7,132.69,19.40596025]
[1765068137929,0.1,132.7,132.69,16.34630787]
[1765068138234,0.1,132.7,132.69,20.08596025]
[1765068139709,8.3,132.75,132.7,8.80994492]
[1765068139914,8.3,132.75,132.74,3.05965238]
[1765068140425,9.01,132.75,132.74,3.05965238]
[1765068141021,9.01,132.75,132.7,8.80994492]
[1765068141233,0.71,132.74,132.72,3.05965238]
[1765068144027,0.71,132.74,132.73,3.05965238]
[1765068146755,8.24352418,132.74,132.73,3.05965238]
[1765068146934,8.24352418,132.74,132.72,3.05965238]
[1765068147257,0.71,132.73,132.72,3.05965238]
[1765068148354,0.71,132.73,132.72,4.76953792]
[1765068148960,8.24409176,132.73,132.71,4.76953792]
[1765068149136,8.3,132.72,132.71,4.76953792]
[1765068149339,9.01,132.72,132.7,4.76953792]
[1765068149540,0.71,132.71,132.68,17.03681523]
[1765068149746,0.71,132.71,132.7,4.76953792]
[1765068153061,0.71,132.71,132.67,35.84213346]
[1765068153062,0.71,132.71,132.69,4.76953792]
[1765068153659,8.24522947,132.71,132.69,4.76953792]
[1765068153963,0.71,132.7,132.68,4.76953792]
[1765068154361,0.71,132.7,132.69,4.76953792]
[1765068154736,0.71,132.7,132.67,12.3070142]
[1765068160339,0.71,132.7,132.68,8.80994492]
[1765068160543,0.71,132.7,132.68,13.57948284]
[1765068161385,0.71,132.7,132.68,21.11587221]
[1765068161564,8.3,132.72,132.68,21.11587221]
[1765068161762,8.3,132.72,132.68,21.80587221]
[1765068161958,0.71,132.71,132.68,21.80587221]
[1765068162173,0.71,132.71,132.69,4.76953792]
[1765068164285,0.71,132.71,132.69,12.30548442]
[1765068164664,8.3,132.72,132.69,12.30548442]
[1765068164967,8.3,132.72,132.7,4.76953792]
[1765068165288,9.01,132.72,132.7,4.76953792]
[1765068165786,8.3,132.72,132.7,5.45953792]
[1765068166086,8.3,132.72,132.7,12.99488699]
[1765068169081,8.3,132.72,132.7,12.30488699]
[1765068169391,9.01,132.72,132.7,12.30488699]
[1765068169895,9.01,132.72,132.71,4.76953792]
[1765068171294,0.71,132.72,132.71,4.76953792]
[1765068172794,8.98,132.74,132.71,4.76953792]
[1765068173092,0.68,132.73,132.71,12.30466652]
[1765068174891,0.68,132.73,132.72,4.76953792]
[1765068175093,0.68,132.73,132.71,7.5351286]
[1765068175290,0.68,132.73,132.7,12.30514863]
[1765068176077,0.68,132.73,132.71,7.53517998]
[1765068177075,0.68,132.73,132.7,12.30524874]
[1765068177479,0.68,132.73,132.69,7.53617702]
[1765068177680,0.68,132.73,132.69,12.30571494]
[1765068178392,0.68,132.73,132.69,7.53617702]
[1765068178595,0.68,132.73,132.69,12.30579211]
[1765068178799,0.68,132.73,132.7,4.76953792]
[1765068180783,0.68,132.73,132.7,7.53540545]
[1765068181113,0.68,132.73,132.71,4.76953792]
[1765068181888,0.68,132.73,132.71,12.30463611]
[1765068182709,0.68,132.73,132.71,7.53509819]
[1765068182933,0.68,132.73,132.72,4.76953792]
[1765068184722,0.68,132.73,132.72,12.30419735]
[1765068185616,8.98,132.74,132.72,12.30419735]
[1765068185817,8.3,132.74,132.72,12.30419735]
[1765068186008,0.68,132.73,132.72,12.30419735]
[1765068186521,8.98,132.74,132.72,12.30419735]
[1765068186730,8.3,132.74,132.72,12.30419735]
[1765068186930,0.68,132.73,132.72,12.30419735]
[1765068187502,8.98,132.74,132.72,12.30419735]
[1765068187696,8.3,132.74,132.72,12.30419735]
[1765068187909,8.98,132.74,132.72,12.30419735]
[1765068188125,8.3,132.74,132.72,12.30419735]
[1765068188334,0.68,132.73,132.72,12.30419735]
[1765068189121,8.3,132.74,132.72,12.30419735]
[1765068189437,0.68,132.73,132.72,12.30419735]
[1765068189635,8.98,132.74,132.72,12.30419735]
[1765068192845,0.68,132.73,132.72,21.11414227]
[1765068193342,8.98,132.74,132.72,21.11414227]
[1765068195256,0.68,132.73,132.72,21.11414227]
[1765068195932,8.98,132.74,132.72,21.11414227]
[1765068197041,0.78,132.76,132.73,14.26948284]
[1765068197243,9.08,132.76,132.75,4.76953792]
[1765068198336,9.08,132.76,132.74,4.76953792]
[1765068198536,0.68,132.75,132.74,4.76953792]
[1765068200448,0.66,132.75,132.74,4.76953792]
[1765068205464,8.19319445,132.75,132.72,4.76953792]
[1765068205662,8.19319445,132.75,132.7,8.80994492]
[1765068205967,0.66,132.74,132.71,4.76953792]
[1765068206179,8.3,132.73,132.71,4.76953792]
[1765068206661,0.66,132.72,132.7,4.76953792]
[1765068207242,0.66,132.72,132.71,4.76953792]
[1765068209071,8.96,132.73,132.71,4.76953792]
[1765068209364,8.96,132.73,132.72,4.76953792]
[1765068210354,8.96,132.73,132.72,3.05235952]
[1765068214361,8.96,132.73,132.71,3.05235952]
[1765068215567,0.66,132.72,132.71,3.05235952]
[1765068218777,0.66,132.72,132.71,3.05235952]
[1765068225689,0.66,132.72,132.7,7.53576795]
[1765068226004,7.63281947,132.76,132.72,8.80994492]
[1765068226180,8.96,132.75,132.72,8.80994492]
[1765068226379,8.96,132.75,132.74,3.05235952]
[1765068228694,16.49308372,132.75,132.73,3.05235952]
[1765068228878,0.66,132.74,132.71,3.05235952]
[1765068229080,8.19388957,132.74,132.71,3.05235952]
[1765068229282,8.19388957,132.74,132.72,3.05235952]
[1765068229479,0.66,132.73,132.72,3.05235952]
[1765068233711,0.66,132.73,132.69,8.22629129]
[1765068233712,8.19409176,132.73,132.69,8.22629129]
[1765068233890,8.3,132.72,132.7,3.05235952]
[1765068234092,9.0,132.72,132.7,3.05235952]
[1765068234278,0.7,132.71,132.7,3.05235952]
[1765068235374,0.7,132.71,132.69,3.05235952]
[1765068235686,8.23554993,132.71,132.68,3.05235952]
[1765068236199,0.7,132.7,132.68,3.05235952]
[1765068236419,0.7,132.7,132.69,3.05235952]
[1765068236620,9.0,132.7,132.69,3.05235952]
[1765068237221,9.0,132.7,132.68,3.05235952]
[1765068237526,0.7,132.69,132.68,3.05235952]
[1765068239907,0.7,132.69,132.66,8.20802673]
[1765068240108,0.7,132.69,132.68,3.05235952]
[1765068240606,8.23636295,132.69,132.67,3.05235952]
[1765068240819,0.67,132.68,132.66,3.05235952]
[1765068242196,8.3,132.67,132.66,3.05235952]
[1765068242699,8.97,132.67,132.66,3.05235952]
[1765068243306,8.97,132.67,132.65,3.05235952]
[1765068243506,0.67,132.66,132.65,3.05235952]
[1765068243910,0.67,132.66,132.64,8.80994492]
[1765068244114,0.67,132.66,132.65,3.05235952]
[1765068244714,8.97,132.67,132.65,3.05235952]
[1765068245914,8.97,132.67,132.66,3.05235952]
[1765068249835,8.97,132.67,132.65,3.05235952]
[1765068250033,8.3,132.67,132.65,3.05235952]
[1765068250238,0.67,132.66,132.65,3.05235952]
[1765068250833,8.97,132.67,132.65,3.05235952]
[1765068252425,8.3,132.67,132.65,3.05235952]
[1765068252626,8.97,132.67,132.65,3.05235952]
[1765068256246,15.83751604,132.67,132.63,7.5397029]
[1765068256442,0.67,132.66,132.64,3.05235952]
[1765068257543,0.67,132.66,132.61,3.05235952]
[1765068257544,11.26087964,132.66,132.61,3.05235952]
[1765068257935,0.67,132.65,132.61,3.05235952]
[1765068258136,8.3,132.64,132.61,3.05235952]
[1765068258536,0.67,132.63,132.61,3.05235952]
[1765068259053,0.67,132.63,132.6,3.05235952]
[1765068259658,0.67,132.63,132.61,3.05235952]
[1765068261842,0.67,132.63,132.6,7.54139473]
[1765068262044,0.67,132.63,132.61,3.05235952]
[1765068263672,0.67,132.63,132.6,8.20134844]
[1765068263840,0.67,132.63,132.61,3.05235952]
[1765068264534,8.20999152,132.63,132.6,3.05235952]
[1765068264776,0.66,132.62,132.6,3.05235952]
[1765068266972,0.66,132.62,132.59,7.54196286]
[1765068267172,0.66,132.62,132.61,3.05235952]
[1765068268580,0.66,132.62,132.6,3.05235952]
[1765068268790,8.3,132.61,132.6,3.05235952]
[1765068269204,8.96,132.61,132.6,3.05235952]
[1765068270511,8.96,132.61,132.6,4.77775276]
[1765068271685,8.3,132.61,132.6,4.77775276]
[1765068271892,8.96,132.61,132.6,4.77775276]
[1765068277386,8.96,132.61,132.59,7.54198002]
[1765068277608,8.96,132.61,132.6,4.77775276]
[1765068291302,8.96,132.61,132.59,12.31973278]
[1765068293221,8.96,132.61,132.6,4.77775276]
[1765068300223,8.96,132.61,132.59,4.77775276]
[1765068300430,0.72,132.6,132.59,4.77775276]
[1765068301625,9.02,132.61,132.59,4.77775276]
[1765068301827,0.72,132.6,132.59,4.77775276]
[1765068302033,0.72,132.6,132.58,7.54241124]
[1765068302347,0.72,132.6,132.56,4.97775276]
[1765068303140,8.26155749,132.6,132.56,4.97775276]
[1765068303517,8.26155749,132.6,132.56,12.52144518]
[1765068303518,0.72,132.59,132.56,12.52144518]
[1765068303719,0.72,132.59,132.57,4.77775276]
[1765068304254,0.72,132.6,132.57,13.01072743]
[1765068304457,0.72,132.6,132.58,4.77775276]
[1765068305057,8.3,132.61,132.59,4.77775276]
[1765068305266,9.02,132.61,132.59,4.77775276]
[1765068305828,8.3,132.61,132.59,5.46775276]
[1765068306025,9.02,132.61,132.59,13.00977736]
[1765068306465,0.72,132.66,132.6,14.27769768]
[1765068306762,0.72,132.66,132.63,4.77775276]
[1765068306763,9.02,132.66,132.63,4.77775276]
[1765068307169,0.72,132.65,132.63,4.77775276]
[1765068310459,0.72,132.65,132.61,17.04085435]
[1765068310766,0.72,132.65,132.62,4.77775276]
[1765068311264,0.72,132.65,132.62,5.46775276]
[1765068313401,0.72,132.65,132.63,4.77775276]
[1765068316192,0.72,132.65,132.62,13.00803217]
[1765068317988,8.3,132.66,132.63,8.22962704]
[1765068318188,0.72,132.65,132.63,12.3173798]
[1765068318490,0.72,132.65,132.61,4.77775276]
[1765068319476,8.2589574,132.65,132.61,4.77775276]
[1765068319676,8.2589574,132.65,132.62,4.77775276]
[1765068319970,0.72,132.64,132.62,4.77775276]
[1765068320203,0.72,132.64,132.61,5.46775276]
[1765068320515,0.72,132.64,132.61,4.77775276]
[1765068321718,0.72,132.64,132.61,5.46775276]
[1765068323716,8.3,132.63,132.6,4.77775276]
[1765068323920,8.3,132.63,132.58,4.77775276]
[1765068324129,0.69,132.62,132.58,4.77775276]
[1765068325327,8.23076883,132.62,132.57,4.77775276]
[1765068325697,0.69,132.61,132.57,4.77775276]
[1765068325904,8.3,132.6,132.57,4.77775276]
[1765068326517,0.69,132.59,132.57,4.77775276]
[1765068327637,0.69,132.59,132.58,4.77775276]
[1765068327835,8.99,132.6,132.58,4.77775276]
[1765068328206,8.3,132.6,132.58,4.77775276]
[1765068328627,8.99,132.6,132.58,4.77775276]
[1765068328824,8.3,132.6,132.59,4.77775276]
[1765068329119,8.3,132.6,132.59,5.46775276]
[1765068330342,0.69,132.63,132.59,21.81974459]
[1765068330508,8.3,132.62,132.61,3.05711385]
[1765068330919,8.99,132.62,132.61,3.05711385]
[1765068331540,8.3,132.62,132.61,3.05711385]
[1765068331923,8.99,132.62,132.61,3.05711385]
[1765068332949,8.99,132.62,132.6,3.05711385]
[1765068338144,8.3,132.62,132.6,3.74711385]
[1765068338353,8.99,132.62,132.6,3.05711385]
[1765068340462,8.3,132.62,132.6,11.28851406]
[1765068340649,8.99,132.62,132.6,11.28851406]
[1765068340855,8.99,132.62,132.6,10.59851406]
[1765068344156,8.99,132.62,132.61,3.05711385]
[1765068348378,8.99,132.62,132.6,7.54140021]
[1765068348678,8.99,132.62,132.6,10.59851406]
[1765068349672,0.69,132.61,132.59,3.05711385]
[1765068350253,0.69,132.61,132.58,3.05711385]
[1765068353487,8.23091996,132.61,132.58,3.05711385]
[1765068354080,0.69,132.61,132.58,3.05711385]
[1765068355064,0.69,132.61,132.59,3.05711385]
[1765068361395,0.69,132.61,132.58,7.54232564]
[1765068361396,8.23091058,132.61,132.57,8.23312827]
[1765068361589,8.23091058,132.61,132.58,3.05711385]
[1765068361783,0.72,132.6,132.58,3.05711385]
[1765068362168,0.72,132.6,132.59,3.05711385]
[1765068362890,0.72,132.6,132.58,3.05711385]
[1765068363567,8.3,132.59,132.56,3.25711385]
[1765068364080,0.72,132.58,132.57,3.05711385]
[1765068364282,8.3,132.59,132.57,10.60029858]
[1765068364485,8.3,132.59,132.58,11.28972962]
[1765068364874,0.72,132.61,132.58,11.28972962]
[1765068365189,0.72,132.61,132.6,3.05711385]
[1765068365190,9.02,132.61,132.6,3.05711385]
[1765068365796,8.3,132.61,132.6,3.05711385]
[1765068367578,9.02,132.61,132.59,3.05711385]
[1765068367777,0.72,132.6,132.59,3.05711385]
[1765068368797,9.02,132.61,132.59,3.05711385]
[1765068369389,9.02,132.61,132.58,7.54242036]
[1765068369689,9.02,132.61,132.59,3.05711385]
[1765068369986,0.72,132.6,132.59,3.05711385]
[1765068373431,0.72,132.6,132.57,8.80994492]
[1765068373599,11.31864017,132.6,132.56,0.2]
[1765068373797,3.05711385,132.59,132.56,0.2]
[1765068373997,8.3,132.58,132.56,0.2]
[1765068374228,9.02,132.58,132.56,0.2]
[1765068374530,0.72,132.57,132.56,0.2]
[1765068386603,0.72,132.57,132.56,3.25711385]
[1765068388436,0.72,132.57,132.56,0.2]
[1765068399348,9.0,132.58,132.56,7.74362685]
[1765068399662,9.0,132.58,132.56,12.52465569]
[1765068400531,0.7,132.57,132.56,7.74362685]
[1765068404436,0.7,132.57,132.56,0.2]
[1765068416686,8.24318473,132.57,132.56,0.2]
[1765068420401,9.0,132.58,132.56,4.98102884]
[1765068420588,0.7,132.57,132.56,4.98102884]
[1765068425594,8.3,132.58,132.56,4.98102884]
[1765068425795,8.3,132.58,132.57,4.78102884]
[1765068425999,9.0,132.58,132.57,4.78102884]
[1765068427201,9.0,132.58,132.56,7.74368247]
[1765068427402,9.0,132.58,132.57,4.78102884]
[1765068428206,9.0,132.58,132.56,0.2]
[1765068428505,9.0,132.58,132.56,4.98102884]
[1765068428799,0.7,132.57,132.56,4.98102884]
[1765068429002,0.7,132.57,132.56,0.2]
[1765068429206,9.0,132.58,132.56,4.98102884]
[1765068429904,0.7,132.57,132.56,0.2]
[1765068430105,0.7,132.57,132.56,4.98102884]
[1765068430911,8.3,132.58,132.56,4.98102884]
[1765068431076,8.3,132.58,132.57,5.47102884]
[1765068431585,8.3,132.58,132.57,4.78102884]
[1765068432303,8.3,132.58,132.57,7.54318473]
[1765068432606,8.3,132.58,132.57,13.01421357]
[1765068435505,8.3,132.58,132.57,4.78102884]
[1765068438909,8.3,132.58,132.57,13.01421357]
[1765068442016,9.0,132.6,132.57,13.01421357]
[1765068442222,9.0,132.6,132.59,4.78102884]
[1765068442404,8.3,132.6,132.59,4.78102884]
[1765068443016,8.97,132.6,132.59,4.78102884]
[1765068452224,8.97,132.6,132.56,0.2]
[1765068452425,0.67,132.59,132.56,0.2]
[1765068452813,13.97102884,132.58,132.56,0.2]
[1765068453011,8.3,132.57,132.56,0.2]
[1765068453217,8.97,132.57,132.56,0.2]
[1765068454443,16.51483611,132.57,132.56,0.2]
[1765068454809,24.05802084,132.57,132.56,0.2]
[1765068456336,16.51483611,132.57,132.56,0.2]
[1765068456838,27.11864336,132.57,132.56,0.2]
[1765068457726,43.42750736,132.57,132.56,0.2]
[1765068464643,52.23745228,132.57,132.56,1e-08]
[1765068465328,43.42750736,132.57,132.56,1e-08]
[1765068482362,52.23745228,132.57,132.56,1e-08]
[1765068482765,16.308864,132.54,132.53,1e-08]
[1765068483071,27.66948652,132.54,132.53,1e-08]
[1765068483267,28.36948652,132.54,132.53,1e-08]
[1765068483445,31.39189008,132.54,132.53,1e-08]
[1765068484467,38.93678218,132.54,132.53,1e-08]
[1765068485568,47.7467271,132.54,132.53,1e-08]
[1765068486070,47.7467271,132.54,132.51,1e-08]
[1765068486071,9.50994492,132.53,132.51,1e-08]
[1765068486372,128.53118995,132.52,132.51,1e-08]
[1765068486565,136.77722073,132.52,132.51,1e-08]
[1765068486865,16.308864,132.49,132.47,0.2]
[1765068487065,115.66062252,132.48,132.47,0.2]
[1765068487372,116.36062252,132.48,132.47,0.2]
[1765068487576,119.38416838,132.48,132.47,0.2]
[1765068488673,126.93247755,132.48,132.47,0.2]
[1765068496899,123.17185503,132.48,132.47,0.89]
[1765068497065,123.17185503,132.48,132.47,0.2]
[1765068497877,126.23247755,132.48,132.47,0.2]
[1765068499184,126.93247755,132.48,132.47,0.2]
[1765068499606,123.87185503,132.48,132.47,0.2]
[1765068501807,126.93247755,132.48,132.47,0.2]
[1765068503207,19.57185503,132.48,132.47,0.2]
[1765068504285,120.608864,132.47,132.46,1e-08]
[1765068504485,124.33948652,132.47,132.46,1e-08]
[1765068504685,133.14943144,132.47,132.46,1e-08]
[1765068505483,136.17366309,132.47,132.46,1e-08]
[1765068506088,143.72254208,132.47,132.46,1e-08]
[1765068508911,39.42254208,132.47,132.46,1e-08]
[1765068509502,39.42254208,132.47,132.45,1e-08]
[1765068509503,0.67,132.46,132.45,1e-08]
[1765068509714,28.33948652,132.46,132.45,1e-08]
[1765068510105,31.36371817,132.46,132.45,1e-08]
[1765068511390,38.91316706,132.46,132.45,1e-08]
[1765068516495,40.64577343,132.46,132.45,1e-08]
[1765068519330,49.45571835,132.46,132.45,1e-08]
[1765068519704,9.47994492,132.45,132.42,0.2]
[1765068519912,21.10209289,132.43,132.42,0.2]
[1765068520428,32.34794101,132.43,132.42,0.2]
[1765068521126,31.67794101,132.43,132.42,0.2]
[1765068521325,31.67794101,132.43,132.41,0.2]
[1765068521326,32.34794101,132.43,132.41,0.2]
[1765068521530,13.76322889,132.42,132.41,0.2]
[1765068522522,24.34010476,132.42,132.41,1e-08]
[1765068526467,23.67010476,132.42,132.41,1e-08]
[1765068526671,23.67010476,132.42,132.41,0.69000001]
[1765068527167,23.67010476,132.42,132.41,1e-08]
[1765068538062,23.67010476,132.42,132.41,1e-08]
[1765068542579,10.57687587,132.42,132.41,0.66000001]
[1765068542876,15.85172934,132.42,132.41,0.66000001]
[1765068544181,8.3,132.42,132.41,0.66000001]
[1765068548757,15.85172934,132.42,132.41,0.66000001]
[1765068549476,15.85172934,132.42,132.41,1e-08]
[1765068549679,21.35495823,132.42,132.41,1e-08]
[1765068549879,24.37941855,132.42,132.41,1e-08]
[1765068550462,23.66941855,132.42,132.4,1e-08]
[1765068550668,109.80322889,132.41,132.4,1e-08]
[1765068552391,16.308864,132.37,132.35,0.2]
[1765068552573,124.9483815,132.36,132.35,0.2]
[1765068552767,125.6583815,132.36,132.34,0.2]
[1765068552964,21.81209289,132.35,132.34,0.2]
[1765068554087,21.10209289,132.35,132.34,0.2]
[1765068554290,16.308864,132.35,132.34,0.86]
[1765068554668,23.86458746,132.35,132.34,0.2]
[1765068554886,28.65781635,132.35,132.34,0.2]
[1765068555284,7.55572346,132.35,132.34,0.2]
[1765068555690,7.55572346,132.35,132.34,0.86]
[1765068556606,7.55572346,132.35,132.34,0.2]
[1765068557202,7.55572346,132.35,132.34,0.86]
[1765068558081,13.05895235,132.35,132.34,0.2]
[1765068558997,12.34895235,132.35,132.34,0.2]
[1765068559181,13.05895235,132.35,132.34,0.2]
[1765068560095,29.36781635,132.35,132.34,0.2]
[1765068560479,32.39456524,132.35,132.34,0.2]
[1765068563902,26.89133635,132.35,132.34,0.86]
[1765068564204,7.55572346,132.35,132.34,0.86]
[1765068570709,7.55572346,132.35,132.34,0.2]
[1765068575616,12.54895235,132.35,132.34,0.2]
[1765068575994,7.55572346,132.35,132.34,0.2]
[1765068578315,10.82689615,132.35,132.34,0.2]
[1765068578691,7.55572346,132.35,132.34,0.2]
[1765068581115,10.82689615,132.35,132.34,0.2]
[1765068582806,7.55572346,132.35,132.34,0.2]
[1765068585322,11.57117269,132.36,132.34,0.2]
[1765068585511,8.3,132.36,132.34,3.93117269]
[1765068585906,8.3,132.36,132.35,0.66]
[1765068587441,16.57515261,132.36,132.34,0.2]
[1765068587609,0.72,132.35,132.34,0.2]
[1765068587810,24.33197749,132.36,132.34,0.2]
[1765068588027,16.57515261,132.36,132.34,0.2]
[1765068588433,19.60098565,132.36,132.34,0.2]
[1765068588636,16.57515261,132.36,132.34,0.2]
[1765068588832,0.72,132.35,132.34,0.2]
[1765068589431,11.30178541,132.35,132.34,0.2]
[1765068590239,14.3729581,132.35,132.34,0.2]
[1765068591945,30.6818221,132.35,132.34,0.2]
[1765068594843,30.6818221,132.35,132.34,0.2]
[1765068597018,10.58178541,132.35,132.34,0.87]
[1765068597349,7.55572346,132.35,132.34,0.87]
[1765068598753,7.55572346,132.35,132.34,0.2]
[1765068600355,18.88137834,132.36,132.34,0.89]
[1765068600526,15.85531639,132.36,132.34,0.89]
[1765068600726,15.85531639,132.36,132.35,0.69]
[1765068613246,8.3,132.36,132.35,0.69]
[1765068613571,104.3,132.38,132.35,3.76117269]
[1765068613749,104.3,132.38,132.37,3.07117269]
[1765068614145,104.3,132.38,132.37,3.76117269]
[1765068614771,8.3,132.39,132.37,3.76117269]
[1765068614948,8.3,132.39,132.38,3.76117269]